bitfinex-derivatives/quotes_BTCF0:USTF0_20250325
["timestamp","ask_amount","ask_price","bid_price","bid_amount"]
[1742900789947,0.2376721,87213.0,87212.0,2.1113246]
[1742900790551,0.2396721,87213.0,87212.0,2.1113246]
[1742900790753,0.2396721,87213.0,87212.0,1.8613246]
[1742900791147,0.2396721,87213.0,87212.0,0.3613246]
[1742900791349,0.24055211,87213.0,87212.0,0.3613246]
[1742900791746,0.2396721,87213.0,87212.0,0.3613246]
[1742900791945,0.2396721,87213.0,87212.0,0.0579246]
[1742900792151,0.24055211,87213.0,87212.0,0.0006]
[1742900792348,0.24055211,87213.0,87212.0,0.1152493]
[1742900792655,0.24055211,87213.0,87212.0,0.3752493]
[1742900792845,0.24055211,87213.0,87212.0,0.0006]
[1742900793046,0.24055211,87213.0,87212.0,0.1152493]
[1742900793458,0.24055211,87213.0,87212.0,0.3852493]
[1742900794253,0.24055211,87213.0,87212.0,0.4171493]
[1742900794453,0.24055211,87213.0,87212.0,0.1471493]
[1742900795356,0.24055211,87213.0,87212.0,0.3971493]
[1742900796760,0.24055211,87213.0,87212.0,0.4280493]
[1742900803968,0.24055211,87213.0,87212.0,0.4180493]
[1742900804165,0.24055211,87213.0,87212.0,0.0006]
[1742900804365,0.1146533,87209.0,87208.0,0.00017198]
[1742900804560,0.11553331,87209.0,87208.0,0.00017198]
[1742900804758,0.17693331,87209.0,87208.0,0.00077198]
[1742900805375,0.18592699,87209.0,87208.0,0.00017198]
[1742900805560,0.18692699,87209.0,87208.0,0.00017198]
[1742900806068,0.17793331,87209.0,87208.0,0.00017198]
[1742900806270,0.17793331,87209.0,87208.0,0.00105198]
[1742900806662,0.17893331,87209.0,87208.0,0.25105198]
[1742900807177,0.18790491,87209.0,87208.0,0.25105198]
[1742900807566,0.18790491,87209.0,87208.0,0.00105198]
[1742900807761,0.18790491,87209.0,87208.0,0.00017198]
[1742900807962,0.18790491,87209.0,87208.0,0.00085198]
[1742900808472,0.18790491,87209.0,87208.0,0.00017198]
[1742900809075,0.24366105,87209.0,87208.0,0.00017198]
[1742900813580,0.1146822,87187.0,87178.0,0.3608]
[1742900813875,0.1146861,87184.0,87183.0,0.0013388]
[1742900814069,0.12471495,87184.0,87183.0,0.0013388]
[1742900814266,0.18871629,87184.0,87183.0,0.0013388]
[1742900814473,0.19768789,87184.0,87183.0,0.0013388]
[1742900814881,0.19768789,87184.0,87183.0,0.0023388]
[1742900815484,0.19868789,87184.0,87183.0,0.0023388]
[1742900815782,0.21026511,87184.0,87183.0,0.0023388]
[1742900816370,0.21026511,87184.0,87183.0,0.0013388]
[1742900816371,0.21126511,87184.0,87183.0,0.0013388]
[1742900817183,0.32410511,87184.0,87183.0,0.0013388]
[1742900817378,0.32410511,87184.0,87183.0,0.0004588]
[1742900817578,0.32410511,87184.0,87170.0,0.0308]
[1742900817579,0.1147032,87171.0,87170.0,0.0308]
[1742900817777,0.12473339,87171.0,87170.0,0.4372045]
[1742900818177,0.19630499,87171.0,87170.0,0.4372045]
[1742900818572,0.19630499,87171.0,87170.0,0.44874679]
[1742900818775,0.19630499,87171.0,87170.0,0.68874679]
[1742900819588,0.19630499,87171.0,87170.0,0.44874679]
[1742900819877,0.19630499,87171.0,87170.0,1.94874679]
[1742900820084,0.19542498,87171.0,87170.0,1.94874679]
[1742900820677,0.19542498,87171.0,87170.0,2.17874679]
[1742900820678,0.16322498,87171.0,87170.0,2.17874679]
[1742900820881,0.1236748,87171.0,87170.0,2.17874679]
[1742900821089,0.1236748,87171.0,87170.0,1.94874679]
[1742900821494,0.1236748,87171.0,87170.0,2.18874679]
[1742900821678,0.1236748,87171.0,87170.0,2.20874679]
[1742900821988,0.1236748,87171.0,87170.0,1.94874679]
[1742900822483,0.1236748,87171.0,87170.0,2.19874679]
[1742900822985,0.1236748,87171.0,87170.0,2.17874679]
[1742900823586,0.1236748,87171.0,87170.0,1.94874679]
[1742900824394,0.1236748,87171.0,87170.0,2.18874679]
[1742900824690,0.1236748,87171.0,87170.0,1.94874679]
[1742900825079,0.1871748,87171.0,87170.0,1.94874679]
[1742900825280,0.1871748,87171.0,87170.0,0.44874679]
[1742900825477,0.18805481,87171.0,87170.0,0.44874679]
[1742900825891,0.1871748,87171.0,87170.0,0.44874679]
[1742900827893,0.1871748,87171.0,87170.0,0.46874679]
[1742900828094,0.18805481,87171.0,87170.0,0.18874679]
[1742900828393,0.18805481,87171.0,87170.0,0.07404229]
[1742900828582,0.1871748,87171.0,87170.0,0.18874679]
[1742900828782,0.18813481,87171.0,87170.0,0.18874679]
[1742900829189,0.18813481,87171.0,87170.0,0.07404229]
[1742900829387,0.18813481,87171.0,87170.0,0.18874679]
[1742900830293,0.18813481,87171.0,87170.0,0.07404229]
[1742900830484,0.18813481,87171.0,87170.0,0.04294229]
[1742900830679,0.18813481,87171.0,87170.0,0.15764679]
[1742900831387,0.18813481,87171.0,87170.0,0.18884679]
[1742900832195,0.0573555,87165.0,87160.0,0.172074]
[1742900832498,0.1147177,87161.0,87160.0,0.412714]
[1742900832695,0.11583771,87161.0,87160.0,0.412714]
[1742900833195,0.12480931,87161.0,87160.0,0.412714]
[1742900833590,0.12480931,87161.0,87160.0,0.443814]
[1742900833998,0.12480931,87161.0,87160.0,0.5011721]
[1742900834298,0.12480931,87161.0,87160.0,0.51272121]
[1742900834489,0.15580931,87161.0,87160.0,0.51272121]
[1742900834689,0.18890931,87161.0,87160.0,0.51272121]
[1742900834891,0.18890931,87161.0,87160.0,0.27174]
[1742900835191,0.1147282,87152.0,87151.0,0.00045897]
[1742900835393,0.1160082,87152.0,87151.0,0.00105897]
[1742900835695,0.1802082,87152.0,87151.0,0.00105897]
[1742900835897,0.2124082,87152.0,87151.0,0.00105897]
[1742900836089,0.2124082,87152.0,87151.0,0.00045897]
[1742900836698,0.22136877,87152.0,87151.0,0.00045897]
[1742900837697,0.22136877,87152.0,87151.0,0.00105897]
[1742900838102,0.22136877,87152.0,87151.0,0.00045897]
[1742900838294,0.1147493,87136.0,87135.0,0.11520966]
[1742900838500,0.1160293,87136.0,87135.0,0.15580966]
[1742900839002,0.1483293,87136.0,87135.0,0.15580966]
[1742900839203,0.1483293,87136.0,87135.0,0.16759429]
[1742900839593,0.1823293,87136.0,87135.0,0.19799429]
[1742900840004,0.1823293,87136.0,87135.0,0.46799429]
[1742900840405,0.1823293,87136.0,87135.0,0.43799429]
[1742900840708,0.1823293,87136.0,87135.0,0.19799429]
[1742900843710,0.1823293,87136.0,87135.0,0.46799429]
[1742900845209,0.1823293,87136.0,87135.0,0.19799429]
[1742900845810,0.1823293,87136.0,87135.0,0.03145906]
[1742900846015,0.1823293,87136.0,87135.0,0.01256775]
[1742900846417,0.1823293,87136.0,87135.0,0.12731835]
[1742900846923,0.1823293,87136.0,87135.0,0.39731835]
[1742900847219,0.1823293,87136.0,87135.0,0.01256775]
[1742900847421,0.1823293,87136.0,87135.0,0.12731835]
[1742900847825,0.1823293,87136.0,87135.0,0.01256775]
[1742900848011,0.1823293,87136.0,87135.0,0.01196775]
[1742900848318,0.1823293,87136.0,87135.0,0.11520966]
[1742900848519,0.1823293,87136.0,87135.0,0.37739887]
[1742900848719,0.1823293,87136.0,87135.0,0.65739887]
[1742900849021,0.1823293,87136.0,87135.0,0.37739887]
[1742900849227,0.1823293,87136.0,87135.0,0.43949887]
[1742900849722,0.1823293,87136.0,87135.0,0.66949887]
[1742900849923,0.1823293,87136.0,87135.0,0.43949887]
[1742900851425,0.1823293,87136.0,87135.0,0.69949887]
[1742900851623,0.1823293,87136.0,87135.0,0.71949887]
[1742900851816,0.1823293,87136.0,87135.0,0.70949887]
[1742900852015,0.1823293,87136.0,87135.0,0.43949887]
[1742900852418,0.1823293,87136.0,87135.0,0.67949887]
[1742900852621,0.03558,87136.0,87135.0,0.68949887]
[1742900852820,0.002,87136.0,87135.0,0.68949887]
[1742900853215,0.1167493,87136.0,87135.0,0.68949887]
[1742900853513,0.002,87136.0,87135.0,0.68949887]
[1742900856321,0.01104388,87136.0,87135.0,0.68949887]
[1742900857113,0.12579318,87136.0,87135.0,2.18949887]
[1742900858528,0.12579318,87136.0,87135.0,0.68949887]
[1742900858732,0.18839318,87136.0,87135.0,0.43949887]
[1742900859030,0.18963319,87136.0,87135.0,0.66949887]
[1742900859219,0.18839318,87136.0,87135.0,0.66949887]
[1742900860330,0.18839318,87136.0,87135.0,0.43949887]
[1742900860520,0.18839318,87136.0,87135.0,0.01264827]
[1742900860715,0.18971318,87136.0,87135.0,0.22739887]
[1742900861425,0.18971318,87136.0,87135.0,0.49739887]
[1742900861732,0.18963319,87136.0,87135.0,0.49739887]
[1742900861927,0.18963319,87136.0,87135.0,0.56369887]
[1742900862228,0.18967318,87136.0,87135.0,0.56369887]
[1742900862827,0.18839318,87136.0,87135.0,0.56369887]
[1742900868637,0.18839318,87136.0,87135.0,0.29369887]
[1742900869639,0.18839318,87136.0,87135.0,0.53369887]
[1742900870027,0.21839318,87136.0,87135.0,0.29369887]
[1742900870222,0.21967318,87136.0,87135.0,0.29369887]
[1742900872632,0.21967318,87136.0,87135.0,0.52369887]
[1742900872932,0.2106293,87136.0,87135.0,0.52369887]
[1742900873740,0.26642823,87136.0,87135.0,0.52369887]
[1742900876828,0.23642823,87136.0,87135.0,0.52369887]
[1742900877433,0.44181097,87136.0,87135.0,0.52369887]
[1742900878034,0.32706167,87136.0,87135.0,0.52369887]
[1742900878240,0.29686167,87136.0,87135.0,0.52369887]
[1742900878952,0.0573654,87153.0,87135.0,1.90894827]
[1742900879245,0.0303,87152.0,87151.0,0.1147296]
[1742900879552,0.2333951,87152.0,87151.0,0.7000296]
[1742900880237,0.2333951,87152.0,87151.0,0.0006]
[1742900880436,0.23435511,87152.0,87151.0,0.0006]
[1742900880741,0.1147369,87146.0,87145.0,0.1721048]
[1742900880943,0.11561611,87146.0,87145.0,0.6253375]
[1742900881236,0.1774361,87146.0,87145.0,0.6253375]
[1742900881443,0.1783561,87146.0,87145.0,0.6892375]
[1742900882236,0.11428,87164.0,87155.0,0.1147243]
[1742900882436,0.18002451,87156.0,87155.0,0.6653243]
[1742900882638,0.18002451,87156.0,87155.0,0.3953243]
[1742900883444,0.18002451,87156.0,87155.0,1.8953243]
[1742900883844,0.18002451,87156.0,87155.0,1.7253243]
[1742900884355,0.18002451,87156.0,87155.0,1.7557243]
[1742900884555,0.18002451,87156.0,87155.0,1.7567243]
[1742900884955,0.18002451,87156.0,87155.0,2.0773243]
[1742900885749,0.18002451,87156.0,87155.0,0.58901848]
[1742900885953,0.18002451,87156.0,87155.0,0.59001848]
[1742900887953,0.0577485,87176.0,87169.0,0.1720545]
[1742900888153,0.2038638,87170.0,87169.0,0.6354642]
[1742900888347,0.2047038,87170.0,87169.0,0.6354642]
[1742900888565,0.2047038,87170.0,87169.0,0.3954642]
[1742900888750,0.2047038,87170.0,87169.0,0.28076]
[1742900888949,0.2047038,87170.0,87169.0,0.00076]
[1742900889253,0.1147138,87165.0,87164.0,0.1147116]
[1742900889459,0.1155138,87165.0,87164.0,0.1155116]
[1742900889754,0.1155138,87165.0,87164.0,0.4055116]
[1742900889952,0.1155138,87165.0,87164.0,0.0008]
[1742900890155,0.1147151,87162.0,87161.0,0.00017209]
[1742900890345,0.1153551,87162.0,87161.0,0.00017209]
[1742900890757,0.1153551,87162.0,87161.0,0.11488849]
[1742900891060,0.1153551,87162.0,87161.0,0.00093209]
[1742900891454,0.1153551,87162.0,87161.0,0.00017209]
[1742900892754,0.1163551,87162.0,87161.0,0.00017209]
[1742900893952,0.1163551,87162.0,87161.0,0.00097209]
[1742900894562,0.1163551,87162.0,87161.0,0.00017209]
[1742900894752,0.1163551,87162.0,87161.0,0.00093209]
[1742900894957,0.1163551,87162.0,87161.0,0.00017209]
[1742900896366,0.1721422,87162.0,87161.0,0.00017209]
[1742900896956,0.2349422,87162.0,87161.0,0.00017209]
[1742900898772,0.24390929,87162.0,87161.0,0.00017209]
[1742900899457,0.2349422,87162.0,87161.0,0.00017209]
[1742900899666,0.2349422,87162.0,87161.0,0.00093209]
[1742900900269,0.2349422,87162.0,87161.0,0.00017209]
[1742900908266,0.5957422,87162.0,87161.0,0.00017209]
[1742900908877,0.71601489,87162.0,87161.0,0.00017209]
[1742900913481,0.82921489,87162.0,87161.0,0.00017209]
[1742900914766,0.1147493,87136.0,87132.0,0.057377]
[1742900914974,0.1147493,87136.0,87135.0,0.41756162]
[1742900915175,0.1155893,87136.0,87135.0,0.41756162]
[1742900915370,0.1477493,87136.0,87135.0,0.45046162]
[1742900915682,0.1477493,87136.0,87135.0,0.70046162]
[1742900915878,0.1477493,87136.0,87135.0,0.69046162]
[1742900916078,0.1487493,87136.0,87135.0,0.71146162]
[1742900916275,0.1487493,87136.0,87135.0,0.31519906]
[1742900916471,0.1806093,87136.0,87135.0,0.26229906]
[1742900916679,0.2114093,87136.0,87135.0,0.00229906]
[1742900917379,0.2124093,87136.0,87135.0,0.00229906]
[1742900917977,0.5722093,87136.0,87135.0,0.00229906]
[1742900918383,0.5712093,87136.0,87135.0,0.00129906]
[1742900919280,0.1147519,87134.0,87133.0,0.07082414]
[1742900919480,0.1147519,87134.0,87129.0,1e-08]
[1742900919481,0.1147572,87130.0,87129.0,1e-08]
[1742900919685,0.1147572,87130.0,87129.0,0.00064001]
[1742900919686,0.5897972,87130.0,87129.0,0.00064001]
[1742900919886,0.1147598,87128.0,87116.0,0.0311]
[1742900920181,0.1156798,87128.0,87116.0,0.0311]
[1742900920575,0.1781798,87128.0,87116.0,0.0311]
[1742900920881,0.1781798,87128.0,87116.0,0.1458753]
[1742900921085,0.1781798,87128.0,87116.0,0.1458756]
[1742900921683,0.1781798,87128.0,87116.0,0.0311]
[1742900922180,0.1781798,87128.0,87117.0,0.1147742]
[1742900922578,0.1781798,87128.0,87117.0,0.1147743]
[1742900922779,0.1781798,87128.0,87118.0,0.0322]
[1742900923286,0.1781798,87128.0,87119.0,0.03345914]
[1742900924686,0.2339669,87128.0,87119.0,0.03345914]
[1742900925083,0.3478469,87128.0,87119.0,0.03345914]
[1742900928788,0.3477269,87128.0,87120.0,0.0573851]
[1742900929290,0.3477269,87128.0,87127.0,0.27017209]
[1742900929484,0.3477269,87128.0,87127.0,0.00077209]
[1742900929686,0.3477269,87128.0,87127.0,0.00017209]
[1742900930183,0.3476469,87128.0,87127.0,0.00017209]
[1742900933884,0.3476469,87128.0,87127.0,0.24017209]
[1742900934095,0.46301974,87128.0,87127.0,0.00077209]
[1742900934287,0.46301974,87128.0,87127.0,0.00017209]
[1742900934594,0.46301974,87128.0,87127.0,0.24017209]
[1742900934893,0.46301974,87128.0,87127.0,0.24077209]
[1742900935083,0.46301974,87128.0,87127.0,0.00077209]
[1742900935284,0.46301974,87128.0,87127.0,0.00017209]
[1742900936085,0.34933974,87128.0,87127.0,0.00017209]
[1742900936283,0.46273974,87128.0,87127.0,0.23017209]
[1742900936488,0.46273974,87128.0,87127.0,0.23101209]
[1742900937089,0.2915798,87128.0,87127.0,0.00101209]
[1742900937389,0.2915798,87128.0,87127.0,0.00017209]
[1742900940990,0.34739264,87128.0,87127.0,0.28017209]
[1742900941193,0.34739264,87128.0,87127.0,0.28077209]
[1742900941898,0.34739264,87128.0,87127.0,0.00077209]
[1742900942191,0.34739264,87128.0,87127.0,0.00017209]
[1742900947891,0.70819264,87128.0,87127.0,0.00017209]
[1742900948695,0.84134722,87128.0,87127.0,0.00017209]
[1742900950610,0.84102722,87128.0,87127.0,0.00017209]
[1742900950900,0.66544722,87128.0,87127.0,0.44493329]
[1742900951106,0.66544722,87128.0,87127.0,0.44553329]
[1742900951310,0.30464722,87128.0,87127.0,0.50863329]
[1742900951611,0.18988742,87128.0,87127.0,0.52036684]
[1742900951797,0.30372722,87128.0,87127.0,0.52036684]
[1742900953403,0.45921198,87128.0,87127.0,0.52036684]
[1742900957805,0.34445218,87128.0,87127.0,0.52036684]
[1742900958002,0.37832221,87136.0,87135.0,0.1147506]
[1742900958203,0.37900221,87136.0,87135.0,0.6958306]
[1742900959207,0.41280221,87136.0,87135.0,0.58108]
[1742900959405,0.41280221,87136.0,87135.0,0.35108]
[1742900959606,0.41280221,87136.0,87135.0,0.1758306]
[1742900959806,0.44490221,87136.0,87135.0,0.4458306]
[1742900960113,0.44490221,87136.0,87135.0,0.31108]
[1742900961700,0.29451048,87136.0,87135.0,0.31108]
[1742900962506,0.29451048,87136.0,87135.0,0.4258306]
[1742900963003,0.29451048,87136.0,87135.0,0.34108]
[1742900963413,0.29451048,87136.0,87135.0,0.35108]
[1742900963805,0.29451048,87136.0,87135.0,0.2858306]
[1742900965610,0.50070529,87136.0,87135.0,0.2858306]
[1742900966211,0.50070529,87136.0,87135.0,0.5158306]
[1742900969714,0.50070529,87136.0,87135.0,0.5488306]
[1742900969915,0.50070529,87136.0,87135.0,0.3188306]
[1742900970115,0.50070529,87136.0,87135.0,0.5788306]
[1742900970324,0.2387074,87136.0,87135.0,0.5788306]
[1742900972227,0.2380274,87136.0,87135.0,0.5788306]
[1742900972828,0.23862741,87136.0,87135.0,0.5788306]
[1742900973218,0.2380274,87136.0,87135.0,0.5788306]
[1742900973630,0.23862741,87136.0,87135.0,0.5788306]
[1742900974023,0.2380274,87136.0,87135.0,0.5788306]
[1742900977231,0.2387074,87136.0,87135.0,0.5788306]
[1742900977632,0.2380274,87136.0,87135.0,0.5788306]
[1742900978532,0.23862741,87136.0,87135.0,0.5788306]
[1742900979419,0.2380274,87136.0,87135.0,0.5788306]
[1742900981523,0.23862741,87136.0,87135.0,0.5788306]
[1742900982647,0.5006207,87136.0,87135.0,0.5788306]
[1742900985624,0.5006207,87136.0,87135.0,0.5458306]
[1742900986525,0.29442589,87136.0,87135.0,0.2555306]
[1742900986721,0.29442589,87136.0,87135.0,0.2254306]
[1742900991728,0.29442589,87136.0,87135.0,0.11068]
[1742900991927,0.1147598,87128.0,87127.0,0.18404094]
[1742900992232,0.1155198,87128.0,87127.0,0.56464094]
[1742900992542,0.1147598,87128.0,87127.0,0.56464094]
[1742900992736,0.1155598,87128.0,87127.0,0.56464094]
[1742900992932,0.1795598,87128.0,87127.0,0.56464094]
[1742900993839,0.1795598,87128.0,87124.0,0.0326]
[1742900993840,0.1147704,87120.0,87119.0,0.00045914]
[1742900994033,0.2268904,87120.0,87119.0,0.00045914]
[1742900994230,0.3233904,87120.0,87119.0,0.00109914]
[1742900994745,0.1147783,87114.0,87113.0,0.27439019]
[1742900994938,0.11597831,87114.0,87113.0,0.27499019]
[1742900995132,0.14797831,87114.0,87113.0,0.27499019]
[1742900995333,0.14797831,87114.0,87113.0,0.0006]
[1742900996529,0.1147822,87111.0,87110.0,0.28609021]
[1742900996840,0.1159422,87111.0,87110.0,0.44669021]
[1742900997036,0.1489422,87111.0,87110.0,0.27499019]
[1742900997743,0.1812422,87111.0,87110.0,0.28642788]
[1742900998050,0.1812422,87111.0,87110.0,0.27499019]
[1742900999945,0.1812422,87111.0,87110.0,0.0006]
[1742900999946,0.23704068,87111.0,87110.0,0.0006]
[1742901000245,0.1147915,87104.0,87100.0,0.4608]
[1742901000541,0.1159515,87104.0,87103.0,0.00105922]
[1742901000741,0.1777515,87104.0,87103.0,0.00105922]
[1742901000941,0.1777515,87104.0,87103.0,0.35585202]
[1742901001243,0.1777515,87104.0,87103.0,0.36717696]
[1742901001645,0.1777515,87104.0,87103.0,0.46457696]
[1742901001833,0.1777515,87104.0,87103.0,1.96457696]
[1742901002037,0.01142464,87122.0,87108.0,0.0573924]
[1742901002038,0.22797518,87111.0,87108.0,0.0573924]
[1742901002237,0.22797518,87111.0,87110.0,0.1147836]
[1742901002238,0.22921519,87111.0,87110.0,0.1147836]
[1742901002442,0.11559029,87111.0,87110.0,0.7161836]
[1742901002751,0.1147757,87116.0,87115.0,0.1147739]
[1742901002942,0.1147757,87116.0,87115.0,0.6453739]
[1742901003138,0.1147757,87116.0,87115.0,2.1453739]
[1742901004346,0.1458757,87116.0,87115.0,1.8079857]
[1742901004644,0.1458757,87116.0,87115.0,1.865377]
[1742901005349,0.1788757,87116.0,87115.0,1.865377]
[1742901005538,0.1788757,87116.0,87115.0,1.926877]
[1742901005848,0.1788757,87116.0,87115.0,1.8121]
[1742901006040,0.2090757,87116.0,87115.0,1.926877]
[1742901006236,0.2090757,87116.0,87115.0,0.426877]
[1742901006433,0.2098757,87116.0,87115.0,0.426877]
[1742901006643,0.2098757,87116.0,87115.0,0.396677]
[1742901006839,0.2098757,87116.0,87115.0,0.2819]
[1742901007038,0.2098757,87116.0,87115.0,0.396677]
[1742901007349,0.2098757,87116.0,87115.0,0.0006]
[1742901008349,0.3226757,87116.0,87115.0,0.0006]
[1742901008550,0.0573937,87107.0,87104.0,0.0308]
[1742901008750,0.1147901,87105.0,87104.0,0.306191]
[1742901008946,0.1156701,87105.0,87104.0,0.1914]
[1742901009144,0.1800701,87105.0,87104.0,0.0006]
[1742901010849,0.1147915,87104.0,87103.0,0.00045922]
[1742901011046,0.1155915,87104.0,87103.0,0.00105922]
[1742901011246,0.1799915,87104.0,87103.0,0.00105922]
[1742901012149,0.1799915,87104.0,87103.0,0.00045922]
[1742901012352,0.1799915,87104.0,87103.0,0.00105922]
[1742901014447,0.1799915,87104.0,87103.0,0.00045922]
[1742901015145,0.1799915,87104.0,87103.0,0.00109922]
[1742901015351,0.1799915,87104.0,87103.0,0.00045922]
[1742901015851,0.5407915,87104.0,87103.0,0.00045922]
[1742901017053,0.1799915,87104.0,87103.0,0.00045922]
[1742901017254,0.1799915,87104.0,87103.0,0.00105922]
[1742901017558,0.1799915,87104.0,87103.0,0.18105922]
[1742901018159,0.1799915,87104.0,87103.0,0.24555922]
[1742901018355,0.1799915,87104.0,87103.0,0.06555922]
[1742901019456,0.31718246,87104.0,87103.0,0.06555922]
[1742901021351,0.25278246,87104.0,87103.0,0.33035202]
[1742901021548,0.17142504,87110.0,87109.0,0.1147849]
[1742901021748,0.28684864,87110.0,87109.0,0.9862249]
[1742901021963,0.28680865,87110.0,87109.0,0.9862249]
[1742901022254,0.11296,87130.0,87121.0,0.1147691]
[1742901022455,0.00076,87122.0,87121.0,0.99785687]
[1742901022658,0.3547727,87129.0,87128.0,0.1147598]
[1742901022958,0.3547727,87129.0,87128.0,0.4655598]
[1742901022959,0.3555327,87129.0,87128.0,0.4655598]
[1742901023158,0.3555327,87129.0,87128.0,0.2454]
[1742901023353,0.4179327,87129.0,87128.0,0.2454]
[1742901023672,0.4179327,87129.0,87128.0,0.0646]
[1742901024253,0.4179327,87129.0,87128.0,0.1793598]
[1742901024453,0.4179327,87129.0,87128.0,0.1801598]
[1742901025061,0.4209327,87129.0,87128.0,0.0654]
[1742901025248,0.4209327,87129.0,87128.0,0.1793598]
[1742901025454,0.4209327,87129.0,87128.0,0.0646]
[1742901025655,0.4239327,87129.0,87128.0,0.0646]
[1742901026657,0.4542327,87129.0,87128.0,0.0646]
[1742901026863,0.172146,87125.0,87124.0,0.0333]
[1742901027068,0.172906,87125.0,87124.0,0.03406]
[1742901027471,0.172906,87125.0,87124.0,0.06676]
[1742901027659,0.172906,87125.0,87124.0,0.4215251]
[1742901028766,0.174906,87125.0,87124.0,0.4215251]
[1742901029168,0.176906,87125.0,87124.0,0.4215251]
[1742901033671,0.176906,87125.0,87124.0,0.5815251]
[1742901034064,0.176906,87125.0,87124.0,0.4215251]
[1742901035271,0.176906,87125.0,87124.0,0.6815251]
[1742901035476,0.176146,87125.0,87124.0,0.6815251]
[1742901035670,0.004,87125.0,87124.0,0.6815251]
[1742901035973,0.0115036,87153.0,87136.0,0.1147493]
[1742901036166,0.0115036,87153.0,87136.0,2.5063093]
[1742901036167,0.0322,87144.0,87136.0,2.5063093]
[1742901036476,0.11492019,87137.0,87136.0,2.5063093]
[1742901036664,0.11492019,87137.0,87136.0,2.5695093]
[1742901037371,0.11992019,87137.0,87136.0,2.5695093]
[1742901038181,0.12492019,87137.0,87136.0,2.5695093]
[1742901038682,0.12492019,87137.0,87136.0,2.5781482]
[1742901039269,0.01017219,87137.0,87136.0,2.5781482]
[1742901039471,0.12492019,87137.0,87136.0,2.5781482]
[1742901042581,0.18852019,87137.0,87136.0,1.0781482]
[1742901043186,0.18852019,87137.0,87136.0,2.5781482]
[1742901045095,0.0573604,87158.0,87155.0,0.1147243]
[1742901045386,0.00076,87156.0,87155.0,0.5754843]
[1742901045580,0.1147208,87158.0,87157.0,0.1147217]
[1742901045777,0.1155608,87158.0,87157.0,0.5554817]
[1742901045982,0.0331,87159.0,87158.0,0.1147203]
[1742901046189,0.147899,87159.0,87158.0,0.5554803]
[1742901046393,0.179299,87159.0,87158.0,0.5881803]
[1742901046595,0.17989901,87159.0,87158.0,0.5881803]
[1742901047197,0.18489901,87159.0,87158.0,0.5881803]
[1742901047396,0.18489901,87159.0,87158.0,0.59950251]
[1742901048596,0.18889901,87159.0,87158.0,0.59950251]
[1742901049295,0.04278001,87159.0,87158.0,0.59950251]
[1742901049504,0.0421,87159.0,87158.0,0.59950251]
[1742901049698,0.0429,87159.0,87158.0,0.59950251]
[1742901049902,0.189219,87159.0,87158.0,0.59950251]
[1742901050104,0.189979,87159.0,87158.0,0.71138251]
[1742901052302,0.189979,87159.0,87158.0,0.48478221]
[1742901052509,0.189979,87159.0,87158.0,0.3754803]
[1742901053207,0.189979,87159.0,87158.0,0.1154803]
[1742901053505,0.189979,87159.0,87158.0,0.3854803]
[1742901053696,0.189979,87159.0,87158.0,0.1154803]
[1742901053903,0.189979,87159.0,87158.0,0.3654803]
[1742901054094,0.189979,87159.0,87158.0,0.1154803]
[1742901054301,0.189979,87159.0,87158.0,0.00076]
[1742901054495,0.189979,87159.0,87149.0,0.11490119]
[1742901054496,0.0573615,87156.0,87149.0,0.11490119]
[1742901054703,0.1147309,87150.0,87149.0,0.35490119]
[1742901055009,0.11533091,87150.0,87149.0,0.35550119]
[1742901055210,0.17833091,87150.0,87149.0,0.47023189]
[1742901055508,0.17833091,87150.0,87149.0,0.48159149]
[1742901055705,0.17833091,87150.0,87149.0,0.47023189]
[1742901056508,0.18233091,87150.0,87149.0,0.68243189]
[1742901056905,0.18233091,87150.0,87149.0,0.71423189]
[1742901057210,0.18233091,87150.0,87149.0,0.72551109]
[1742901057716,0.119723,87156.0,87155.0,0.1147243]
[1742901057915,0.120523,87156.0,87155.0,1.0303243]
[1742901058211,0.146223,87156.0,87155.0,2.5303243]
[1742901058506,0.0315,87156.0,87155.0,2.5303243]
[1742901059103,0.0375,87156.0,87155.0,2.5303243]
[1742901059709,0.0707,87156.0,87155.0,2.5303243]
[1742901059906,0.190423,87156.0,87155.0,2.5303243]
[1742901060297,0.011,87156.0,87155.0,2.5303243]
[1742901060704,0.125723,87156.0,87155.0,2.5303243]
[1742901061305,0.158923,87156.0,87155.0,2.5303243]
[1742901061512,0.192123,87156.0,87155.0,2.5303243]
[1742901062215,0.0774,87156.0,87155.0,2.5303243]
[1742901062406,0.0724,87156.0,87155.0,2.5313243]
[1742901062607,0.0664,87156.0,87155.0,2.5323243]
[1742901063413,0.181123,87156.0,87155.0,2.5323243]
[1742901063609,0.0664,87156.0,87155.0,2.5323243]
[1742901064315,0.0664,87156.0,87155.0,2.5313243]
[1742901064615,0.181123,87156.0,87155.0,2.5323243]
[1742901065400,0.0664,87156.0,87155.0,2.5313243]
[1742901065604,0.181123,87156.0,87155.0,2.5323243]
[1742901067915,0.181123,87156.0,87155.0,2.5005243]
[1742901069415,0.0664,87156.0,87155.0,2.5313243]
[1742901069616,0.181123,87156.0,87155.0,2.5313243]
[1742901069817,0.0664,87156.0,87155.0,2.5313243]
[1742901070018,0.181123,87156.0,87155.0,2.5313243]
[1742901070417,0.181123,87156.0,87155.0,2.6426843]
[1742901071417,0.0664,87156.0,87155.0,2.6426843]
[1742901071614,0.181123,87156.0,87155.0,2.6416843]
[1742901073012,0.0664,87156.0,87155.0,2.6416843]
[1742901074023,0.181123,87156.0,87155.0,2.6416843]
[1742901077024,0.181123,87156.0,87155.0,0.7173243]
[1742901077221,0.181923,87156.0,87155.0,0.7173243]
[1742901077526,0.181923,87156.0,87155.0,0.9973243]
[1742901077726,0.181123,87156.0,87155.0,0.9673243]
[1742901077920,0.181923,87156.0,87155.0,0.7173243]
[1742901078323,0.181123,87156.0,87155.0,0.7173243]
[1742901078523,0.182843,87156.0,87155.0,0.7173243]
[1742901079233,0.182843,87156.0,87155.0,0.6016]
[1742901079531,0.182843,87156.0,87155.0,0.3655243]
[1742901080631,0.182843,87156.0,87155.0,0.2508]
[1742901080926,0.181843,87156.0,87155.0,0.2508]
[1742901081131,0.182843,87156.0,87155.0,0.2508]
[1742901081333,0.182843,87156.0,87155.0,0.6116]
[1742901081533,0.182843,87156.0,87155.0,0.7263243]
[1742901081832,0.182843,87156.0,87155.0,1.0063243]
[1742901082133,0.182843,87156.0,87155.0,0.7263243]
[1742901082830,0.182843,87156.0,87155.0,0.6116]
[1742901083534,0.35397676,87156.0,87155.0,0.6116]
[1742901083832,0.35397676,87156.0,87155.0,0.7263243]
[1742901086927,0.182843,87156.0,87155.0,0.7263243]
[1742901087633,0.182843,87156.0,87155.0,0.9763243]
[1742901087829,0.182843,87156.0,87155.0,0.7263243]
[1742901089427,0.182843,87156.0,87155.0,0.3616]
[1742901089937,0.182843,87156.0,87155.0,0.6416]
[1742901090141,0.182843,87156.0,87155.0,0.3616]
[1742901091838,0.194087,87156.0,87155.0,0.3616]
[1742901092235,0.194087,87156.0,87155.0,0.0008]